[Event "*** Titled Tuesday Blitz"]
[Site "Chess.com"]
[Date "2020.04.28"]
[Round "3"]
[White "GukeshDommaraju"]
[Black "blobica"]
[Result "0-1"]
[WhiteElo "2749"]
[BlackElo "2566"]
[TimeControl "180+1"]
[EndTime "10:29:55 PDT"]
[Termination "blobica won by resignation"]

1. e4 {[%clk 0:03:00.9]} 1... c6 {[%clk 0:02:59.6]} 2. d4 {[%clk 0:03:00.2]}
2... d5 {[%clk 0:02:59.7]} 3. Nc3 {[%clk 0:03:00.3]} 3... dxe4 {[%clk 0:02:58]}
4. Nxe4 {[%clk 0:03:00.5]} 4... Nf6 {[%clk 0:02:58.7]} 5. Nxf6+ {[%clk
0:03:00.5]} 5... exf6 {[%clk 0:02:58.8]} 6. c3 {[%clk 0:03:00.9]} 6... Bd6
{[%clk 0:02:58.9]} 7. Bd3 {[%clk 0:03:01]} 7... O-O {[%clk 0:02:58.5]} 8. Qc2
{[%clk 0:03:01.4]} 8... Re8+ {[%clk 0:02:58.5]} 9. Ne2 {[%clk 0:03:01.7]} 9...
h5 {[%clk 0:02:58]} 10. Be3 {[%clk 0:03:01.3]} 10... Qc7 {[%clk 0:02:57.5]} 11.
O-O-O {[%clk 0:02:58]} 11... h4 {[%clk 0:02:51.7]} 12. h3 {[%clk 0:02:40.8]}
12... Nd7 {[%clk 0:02:50.6]} 13. c4 {[%clk 0:02:40.6]} 13... Qa5 {[%clk
0:02:30.7]} 14. Kb1 {[%clk 0:02:36]} 14... Nf8 {[%clk 0:02:29.9]} 15. Nc3 {[%clk
0:02:24.2]} 15... a6 {[%clk 0:02:16.9]} 16. c5 {[%clk 0:02:16.3]} 16... Bb8
{[%clk 0:02:08.2]} 17. Na4 {[%clk 0:01:54.8]} 17... Be6 {[%clk 0:02:04.4]} 18.
Bd2 {[%clk 0:01:42.8]} 18... Qd8 {[%clk 0:01:59.2]} 19. Nb6 {[%clk 0:01:42]}
19... Ra7 {[%clk 0:01:58.6]} 20. Bc3 {[%clk 0:01:39.4]} 20... Bc7 {[%clk
0:01:58.3]} 21. d5 {[%clk 0:01:37.4]} 21... cxd5 {[%clk 0:01:51.1]} 22. Bd4
{[%clk 0:01:27.4]} 22... Bxb6 {[%clk 0:01:47.7]} 23. cxb6 {[%clk 0:01:27.4]}
23... Ra8 {[%clk 0:01:47.9]} 24. Rhe1 {[%clk 0:01:16.5]} 24... Rc8 {[%clk
0:01:45.2]} 25. Qb3 {[%clk 0:01:10.5]} 25... Nd7 {[%clk 0:01:40.7]} 26. Rc1
{[%clk 0:01:03.9]} 26... Ne5 {[%clk 0:01:28.5]} 27. Rxc8 {[%clk 0:00:47.1]}
27... Bxc8 {[%clk 0:01:25.9]} 28. Bf1 {[%clk 0:00:30.9]} 28... Bf5+ {[%clk
0:01:23]} 29. Ka1 {[%clk 0:00:25.6]} 29... Nc6 {[%clk 0:01:22.2]} 30. Rxe8+
{[%clk 0:00:15]} 30... Qxe8 {[%clk 0:01:21.4]} 31. Qe3 {[%clk 0:00:15.6]} 31...
Qc8 {[%clk 0:01:12.6]} 32. Bc5 {[%clk 0:00:10.1]} 32... d4 {[%clk 0:01:08.1]}
33. Qd2 {[%clk 0:00:10.4]} 33... Qe6 {[%clk 0:01:01.5]} 34. b3 {[%clk
0:00:10.5]} 34... Qe4 {[%clk 0:00:59.6]} 35. Kb2 {[%clk 0:00:09.3]} 35... Qb1+
{[%clk 0:00:58.7]} 36. Ka3 {[%clk 0:00:09.4]} 36... Qxf1 {[%clk 0:00:57.8]} 37.
Qf4 {[%clk 0:00:09.3]} 37... Be6 {[%clk 0:00:46.6]} 38. Bxd4 {[%clk 0:00:09.3]}
38... Nxd4 {[%clk 0:00:44.1]} 39. Qxd4 {[%clk 0:00:09.2]} 39... Qc1+ {[%clk
0:00:43]} 40. Kb4 {[%clk 0:00:09.7]} 40... Qc6 {[%clk 0:00:36]} 41. Qd8+ {[%clk
0:00:09.3]} 41... Kh7 {[%clk 0:00:35.2]} 42. Qd3+ {[%clk 0:00:10.2]} 42... g6
{[%clk 0:00:32.2]} 43. Qd4 {[%clk 0:00:10]} 43... Kg7 {[%clk 0:00:25.5]} 44. a4
{[%clk 0:00:08.3]} 44... Qxg2 {[%clk 0:00:24]} 45. a5 {[%clk 0:00:08.6]} 45...
Qxh3 {[%clk 0:00:22.1]} 46. Kc5 {[%clk 0:00:05.1]} 46... Qxb3 {[%clk 0:00:19.5]}
47. Qxh4 {[%clk 0:00:04.8]} 47... Qa3+ {[%clk 0:00:16.1]} 48. Qb4 {[%clk
0:00:01.3]} 48... Qxb4+ {[%clk 0:00:15.7]} 49. Kxb4 {[%clk 0:00:02.2]} 49... Bd5
{[%clk 0:00:15.7]} 0-1

[Event "*** Titled Tuesday Blitz"]
[Site "Chess.com"]
[Date "2020.04.28"]
[Round "3"]
[White "czasnaszachy"]
[Black "MPGM"]
[Result "1-0"]
[WhiteElo "2316"]
[BlackElo "2516"]
[TimeControl "180+1"]
[EndTime "10:29:55 PDT"]
[Termination "czasnaszachy won by resignation"]

1. d4 {[%clk 0:03:00.7]} 1... d5 {[%clk 0:02:57.7]} 2. c4 {[%clk 0:03:00.4]}
2... Bf5 {[%clk 0:02:56.9]} 3. Nc3 {[%clk 0:02:58.3]} 3... e6 {[%clk 0:02:42.8]}
4. Qb3 {[%clk 0:02:52.5]} 4... Nc6 {[%clk 0:02:42.1]} 5. e3 {[%clk 0:02:45]}
5... Nb4 {[%clk 0:02:36.3]} 6. e4 {[%clk 0:01:59.2]} 6... dxe4 {[%clk
0:02:35.3]} 7. Be3 {[%clk 0:01:58.8]} 7... Nf6 {[%clk 0:02:04.7]} 8. a3 {[%clk
0:01:51.2]} 8... Nd3+ {[%clk 0:02:03.9]} 9. Bxd3 {[%clk 0:01:50]} 9... exd3
{[%clk 0:02:04.8]} 10. O-O-O {[%clk 0:01:49.4]} 10... Be7 {[%clk 0:02:02.9]} 11.
f3 {[%clk 0:01:37.3]} 11... O-O {[%clk 0:02:01.5]} 12. g4 {[%clk 0:01:37.1]}
12... Bg6 {[%clk 0:02:01.5]} 13. h4 {[%clk 0:01:37.1]} 13... h5 {[%clk
0:01:55.6]} 14. g5 {[%clk 0:01:25.5]} 14... Ne8 {[%clk 0:01:48.4]} 15. Nh3
{[%clk 0:01:24.2]} 15... Nd6 {[%clk 0:01:30.5]} 16. Nf4 {[%clk 0:01:20.5]} 16...
Bf5 {[%clk 0:01:14.6]} 17. c5 {[%clk 0:01:07.4]} 17... Ne8 {[%clk 0:01:03.7]}
18. Nxh5 {[%clk 0:01:05.5]} 18... b6 {[%clk 0:00:54.3]} 19. Ne4 {[%clk
0:01:01.2]} 19... bxc5 {[%clk 0:00:52.3]} 20. dxc5 {[%clk 0:00:57.8]} 20... Rb8
{[%clk 0:00:51.5]} 21. Qc3 {[%clk 0:00:57.4]} 21... Qc8 {[%clk 0:00:32.9]} 22.
Rxd3 {[%clk 0:00:46.2]} 22... Qa6 {[%clk 0:00:24.9]} 23. Rd7 {[%clk 0:00:42.6]}
23... Qe2 {[%clk 0:00:12.5]} 24. Neg3 {[%clk 0:00:20]} 24... Qxf3 {[%clk
0:00:12.1]} 25. Rxe7 {[%clk 0:00:19.6]} 25... Bg4 {[%clk 0:00:07.2]} 26. Rf1
{[%clk 0:00:16.1]} 26... Qg2 {[%clk 0:00:06.7]} 27. Rxe8 {[%clk 0:00:13.5]}
27... Bxh5 {[%clk 0:00:07]} 28. Nxh5 {[%clk 0:00:13.3]} 28... Qxf1+ {[%clk
0:00:05.9]} 29. Kc2 {[%clk 0:00:12.1]} 29... Qe2+ {[%clk 0:00:05.8]} 30. Kc1
{[%clk 0:00:06.7]} 30... Qxh5 {[%clk 0:00:05.9]} 31. Rxb8 {[%clk 0:00:06.2]}
31... Rxb8 {[%clk 0:00:05.9]} 32. Bf2 {[%clk 0:00:06.2]} 32... Qf3 {[%clk
0:00:06]} 33. Qxf3 {[%clk 0:00:05.3]} 33... Rd8 {[%clk 0:00:04.6]} 34. Qc3
{[%clk 0:00:05.4]} 34... Rd5 {[%clk 0:00:04.9]} 35. Kc2 {[%clk 0:00:05.6]} 35...
Rf5 {[%clk 0:00:05.1]} 36. Bg3 {[%clk 0:00:05.9]} 36... Rd5 {[%clk 0:00:04.9]}
37. Bxc7 {[%clk 0:00:05.9]} 37... e5 {[%clk 0:00:03.9]} 38. Ba5 {[%clk
0:00:05.5]} 38... e4 {[%clk 0:00:04]} 39. c6 {[%clk 0:00:05.9]} 39... e3 {[%clk
0:00:03.3]} 40. c7 {[%clk 0:00:06.2]} 40... e2 {[%clk 0:00:03.6]} 41. c8=Q+
{[%clk 0:00:06.3]} 41... Kh7 {[%clk 0:00:03.8]} 42. Qe3 {[%clk 0:00:05.1]} 42...
e1=Q {[%clk 0:00:02]} 43. Qxe1 {[%clk 0:00:05.1]} 43... Rf5 {[%clk 0:00:02.4]}
44. Qe4 {[%clk 0:00:05.1]} 44... g6 {[%clk 0:00:02.3]} 45. Qcxf5 {[%clk
0:00:04.9]} 45... gxf5 {[%clk 0:00:02.6]} 46. Qxf5+ {[%clk 0:00:05.4]} 46... Kg8
{[%clk 0:00:03.5]} 47. Qf6 {[%clk 0:00:04.9]} 1-0

[Event "*** Titled Tuesday Blitz"]
[Site "Chess.com"]
[Date "2020.04.28"]
[Round "3"]
[White "Volovier"]
[Black "gmcorrales"]
[Result "1/2-1/2"]
[WhiteElo "2625"]
[BlackElo "2814"]
[TimeControl "180+1"]
[EndTime "10:29:56 PDT"]
[Termination "Game drawn by repetition"]

1. d4 {[%clk 0:03:00.9]} 1... Nf6 {[%clk 0:02:59.6]} 2. Nf3 {[%clk 0:03:00.6]}
2... g6 {[%clk 0:02:59.8]} 3. g3 {[%clk 0:03:00.1]} 3... Bg7 {[%clk 0:02:57.3]}
4. c4 {[%clk 0:03:00.4]} 4... O-O {[%clk 0:02:56.6]} 5. Bg2 {[%clk 0:03:00.4]}
5... d5 {[%clk 0:02:57]} 6. O-O {[%clk 0:02:57.2]} 6... Nc6 {[%clk 0:02:57.2]}
7. Nc3 {[%clk 0:02:54.5]} 7... dxc4 {[%clk 0:02:56.4]} 8. d5 {[%clk 0:02:53]}
8... Na5 {[%clk 0:02:56]} 9. Bg5 {[%clk 0:02:47.9]} 9... c6 {[%clk 0:02:55.1]}
10. e4 {[%clk 0:02:47.5]} 10... cxd5 {[%clk 0:02:48.4]} 11. exd5 {[%clk
0:02:45.2]} 11... Bf5 {[%clk 0:02:39.8]} 12. Re1 {[%clk 0:02:42.1]} 12... Re8
{[%clk 0:02:33.5]} 13. Qd2 {[%clk 0:02:36.6]} 13... Rc8 {[%clk 0:02:32.5]} 14.
Bh6 {[%clk 0:02:31.7]} 14... a6 {[%clk 0:02:17.2]} 15. Bxg7 {[%clk 0:02:28.7]}
15... Kxg7 {[%clk 0:02:18.1]} 16. Rad1 {[%clk 0:02:25.3]} 16... b5 {[%clk
0:02:14.7]} 17. Ne5 {[%clk 0:02:23.2]} 17... Qd6 {[%clk 0:01:55.3]} 18. h3
{[%clk 0:02:20.2]} 18... h5 {[%clk 0:01:46.5]} 19. f4 {[%clk 0:02:17.8]} 19...
b4 {[%clk 0:01:38.3]} 20. Na4 {[%clk 0:02:15.6]} 20... Bd7 {[%clk 0:01:24.7]}
21. b3 {[%clk 0:02:10.8]} 21... Bxa4 {[%clk 0:01:23.6]} 22. bxa4 {[%clk
0:02:11.7]} 22... c3 {[%clk 0:01:19.4]} 23. Qf2 {[%clk 0:02:08.4]} 23... Qc5
{[%clk 0:01:06]} 24. Nc6 {[%clk 0:02:03.7]} 24... Qxf2+ {[%clk 0:00:59.6]} 25.
Kxf2 {[%clk 0:02:04.6]} 25... Nxc6 {[%clk 0:00:55]} 26. dxc6 {[%clk 0:02:04]}
26... e6 {[%clk 0:00:54.8]} 27. Rd6 {[%clk 0:01:59.3]} 27... Red8 {[%clk
0:00:51.6]} 28. Rxd8 {[%clk 0:01:56.1]} 28... Rxd8 {[%clk 0:00:52.1]} 29. Rc1
{[%clk 0:01:55.6]} 29... a5 {[%clk 0:00:51.2]} 30. Ke3 {[%clk 0:01:53.7]} 30...
Kf8 {[%clk 0:00:50.1]} 31. a3 {[%clk 0:01:52.3]} 31... Ke7 {[%clk 0:00:43.6]}
32. axb4 {[%clk 0:01:50.5]} 32... axb4 {[%clk 0:00:44.5]} 33. c7 {[%clk
0:01:50.1]} 33... Rc8 {[%clk 0:00:43.1]} 34. Kd3 {[%clk 0:01:48.5]} 34... Rxc7
{[%clk 0:00:41.7]} 35. a5 {[%clk 0:01:48.1]} 35... Nd7 {[%clk 0:00:25.6]} 36.
Kc2 {[%clk 0:01:43.9]} 36... Nc5 {[%clk 0:00:22.3]} 37. Rb1 {[%clk 0:01:41.4]}
37... Ra7 {[%clk 0:00:20.8]} 38. Rxb4 {[%clk 0:01:39.5]} 38... Rxa5 {[%clk
0:00:21]} 39. Kxc3 {[%clk 0:01:37.2]} 39... Ra3+ {[%clk 0:00:20.8]} 40. Kc4
{[%clk 0:01:37.1]} 40... Rxg3 {[%clk 0:00:21.7]} 41. Bc6 {[%clk 0:01:34.5]}
41... Nd3 {[%clk 0:00:20.1]} 42. Rb3 {[%clk 0:01:31.7]} 42... Kd6 {[%clk
0:00:18.4]} 43. Be8 {[%clk 0:01:29.6]} 43... Ke7 {[%clk 0:00:18.4]} 44. Bc6
{[%clk 0:01:27.8]} 44... Rxh3 {[%clk 0:00:09.5]} 45. Rxd3 {[%clk 0:01:26.6]}
45... Rxd3 {[%clk 0:00:10.4]} 46. Kxd3 {[%clk 0:01:26.6]} 46... Kf6 {[%clk
0:00:10.7]} 47. Ke4 {[%clk 0:01:23.3]} 47... g5 {[%clk 0:00:10.6]} 48. fxg5+
{[%clk 0:01:20.5]} 48... Kxg5 {[%clk 0:00:11.5]} 49. Be8 {[%clk 0:01:19.5]}
49... Kf6 {[%clk 0:00:09.9]} 50. Kf4 {[%clk 0:01:18.5]} 50... e5+ {[%clk
0:00:10]} 51. Ke4 {[%clk 0:01:17.5]} 51... Ke6 {[%clk 0:00:10.4]} 52. Ba4 {[%clk
0:01:15.2]} 52... f5+ {[%clk 0:00:11.3]} 53. Kf3 {[%clk 0:01:14.1]} 53... Kf6
{[%clk 0:00:12.2]} 54. Bb5 {[%clk 0:01:13.1]} 54... Kg5 {[%clk 0:00:13.1]} 55.
Bf1 {[%clk 0:01:11]} 55... h4 {[%clk 0:00:13.7]} 56. Bh3 {[%clk 0:01:10.2]}
56... Kf6 {[%clk 0:00:14.6]} 57. Ke3 {[%clk 0:01:08.6]} 57... Ke6 {[%clk
0:00:14.8]} 58. Kf3 {[%clk 0:01:07.3]} 58... Kf6 {[%clk 0:00:13.3]} 59. Ke3
{[%clk 0:01:06.5]} 59... Kg6 {[%clk 0:00:13.5]} 60. Kf3 {[%clk 0:01:05]} 60...
Kg5 {[%clk 0:00:14.4]} 61. Ke3 {[%clk 0:01:03.9]} 61... e4 {[%clk 0:00:15.3]}
62. Ke2 {[%clk 0:01:02.4]} 62... Kf4 {[%clk 0:00:15.7]} 63. Kf2 {[%clk 0:01:01]}
63... Ke5 {[%clk 0:00:15.8]} 64. Ke2 {[%clk 0:01:00.1]} 64... f4 {[%clk
0:00:16.7]} 65. Bc8 {[%clk 0:00:58.4]} 65... Kd4 {[%clk 0:00:17.6]} 66. Bg4
{[%clk 0:00:57]} 66... Ke5 {[%clk 0:00:17.3]} 67. Bc8 {[%clk 0:00:56]} 67... Kd6
{[%clk 0:00:17.7]} 68. Bb7 {[%clk 0:00:52.5]} 68... Ke5 {[%clk 0:00:17]} 69. Bc8
{[%clk 0:00:49.3]} 1/2-1/2

[Event "*** Titled Tuesday Blitz"]
[Site "Chess.com"]
[Date "2020.04.28"]
[Round "3"]
[White "olomi007"]
[Black "renehp"]
[Result "1-0"]
[WhiteElo "2659"]
[BlackElo "2413"]
[TimeControl "180+1"]
[EndTime "10:29:57 PDT"]
[Termination "olomi007 won by resignation"]

1. e4 {[%clk 0:03:00.9]} 1... c5 {[%clk 0:02:59.5]} 2. Nf3 {[%clk 0:03:00.4]}
2... d6 {[%clk 0:02:59.3]} 3. d4 {[%clk 0:03:00.3]} 3... cxd4 {[%clk 0:02:57.5]}
4. Nxd4 {[%clk 0:03:01.2]} 4... Nf6 {[%clk 0:02:56.8]} 5. Nc3 {[%clk 0:03:01.8]}
5... a6 {[%clk 0:02:54.5]} 6. Be3 {[%clk 0:03:01.8]} 6... Ng4 {[%clk 0:02:53.6]}
7. Bc1 {[%clk 0:03:01.7]} 7... Nf6 {[%clk 0:02:52.5]} 8. Bg5 {[%clk 0:03:00.9]}
8... e6 {[%clk 0:02:51.9]} 9. f4 {[%clk 0:02:59.9]} 9... Qb6 {[%clk 0:02:49.9]}
10. Qd3 {[%clk 0:02:57.8]} 10... Qxb2 {[%clk 0:02:49.8]} 11. Rb1 {[%clk
0:02:57.3]} 11... Qa3 {[%clk 0:02:50.2]} 12. f5 {[%clk 0:02:52.5]} 12... Nc6
{[%clk 0:02:47]} 13. fxe6 {[%clk 0:02:49.1]} 13... fxe6 {[%clk 0:02:44.9]} 14.
Be2 {[%clk 0:02:47.8]} 14... Be7 {[%clk 0:02:44.3]} 15. Nxc6 {[%clk 0:02:39.1]}
15... bxc6 {[%clk 0:02:39.3]} 16. Bh5+ {[%clk 0:02:39]} 16... g6 {[%clk
0:02:08.2]} 17. Rf1 {[%clk 0:02:19.8]} 17... O-O {[%clk 0:01:58.8]} 18. e5
{[%clk 0:02:17]} 18... dxe5 {[%clk 0:01:44.9]} 19. Bxg6 {[%clk 0:02:15.9]} 19...
e4 {[%clk 0:01:38.2]} 20. Bxe4 {[%clk 0:02:08.8]} 20... Nxe4 {[%clk 0:01:27.3]}
21. Rxf8+ {[%clk 0:02:04.2]} 21... Bxf8 {[%clk 0:01:19.7]} 22. Nxe4 {[%clk
0:01:50.5]} 22... Qxd3 {[%clk 0:01:19.2]} 23. cxd3 {[%clk 0:01:51.4]} 23... e5
{[%clk 0:01:04.1]} 24. Rb6 {[%clk 0:01:46.5]} 24... c5 {[%clk 0:01:02.3]} 25.
Be3 {[%clk 0:01:38.8]} 25... Bf5 {[%clk 0:00:54.2]} 26. Kd2 {[%clk 0:01:34.4]}
26... Bxe4 {[%clk 0:00:53.5]} 27. dxe4 {[%clk 0:01:34.2]} 27... c4 {[%clk
0:00:51.6]} 28. Kc3 {[%clk 0:01:33.5]} 28... a5 {[%clk 0:00:44.7]} 29. Kxc4
{[%clk 0:01:32.9]} 29... Rc8+ {[%clk 0:00:44.9]} 30. Kd3 {[%clk 0:01:31.5]}
30... Bb4 {[%clk 0:00:44.3]} 31. Rb5 {[%clk 0:01:21.8]} 31... Rc3+ {[%clk
0:00:43.2]} 32. Ke2 {[%clk 0:01:21.8]} 32... Rc2+ {[%clk 0:00:42.5]} 33. Kf3
{[%clk 0:01:22.1]} 33... Rxa2 {[%clk 0:00:42.3]} 34. Rxe5 {[%clk 0:01:21.2]}
34... Ra3 {[%clk 0:00:42.7]} 35. Rd5 {[%clk 0:01:06.7]} 35... a4 {[%clk
0:00:38.8]} 36. Kf4 {[%clk 0:01:04.9]} 36... Rb3 {[%clk 0:00:35.7]} 37. Bc5
{[%clk 0:01:01.5]} 37... Bc3 {[%clk 0:00:26.8]} 38. Rd8+ {[%clk 0:00:56.9]}
38... Kf7 {[%clk 0:00:26.5]} 39. Ra8 {[%clk 0:00:56.7]} 39... Bb4 {[%clk
0:00:02.5]} 40. Ra7+ {[%clk 0:00:51.2]} 40... Ke6 {[%clk 0:00:01.5]} 41. Bxb4
{[%clk 0:00:50.1]} 41... Rxb4 {[%clk 0:00:01.7]} 42. Rxh7 {[%clk 0:00:50.1]}
42... a3 {[%clk 0:00:01.3]} 43. Ra7 {[%clk 0:00:49.7]} 43... Rb3 {[%clk
0:00:02.2]} 44. h4 {[%clk 0:00:46.8]} 44... Rc3 {[%clk 0:00:01.7]} 45. Ra6+
{[%clk 0:00:46.1]} 45... Kf7 {[%clk 0:00:01.6]} 46. g4 {[%clk 0:00:45.6]} 46...
Kg8 {[%clk 0:00:02.5]} 47. h5 {[%clk 0:00:45.5]} 47... Rb3 {[%clk 0:00:03.4]}
48. g5 {[%clk 0:00:45.4]} 48... Kg7 {[%clk 0:00:03.7]} 49. Ra7+ {[%clk
0:00:44.9]} 49... Kg8 {[%clk 0:00:03.7]} 50. Kf5 {[%clk 0:00:44.4]} 50... Rh3
{[%clk 0:00:03.9]} 51. h6 {[%clk 0:00:44.1]} 51... Rf3+ {[%clk 0:00:04]} 52. Kg6
{[%clk 0:00:44]} 52... Kf8 {[%clk 0:00:03.3]} 53. h7 {[%clk 0:00:42.9]} 53...
Rh3 {[%clk 0:00:03.6]} 54. Ra8+ {[%clk 0:00:42.1]} 54... Ke7 {[%clk 0:00:03.6]}
55. h8=Q {[%clk 0:00:42.2]} 55... Rxh8 {[%clk 0:00:04.5]} 56. Rxh8 {[%clk
0:00:42.3]} 56... a2 {[%clk 0:00:05.4]} 57. Ra8 {[%clk 0:00:42.8]} 57... a1=Q
{[%clk 0:00:05]} 58. Rxa1 {[%clk 0:00:43.3]} 1-0

[Event "*** Titled Tuesday Blitz"]
[Site "Chess.com"]
[Date "2020.04.28"]
[Round "3"]
[White "Sunnika"]
[Black "chenxiaoyuer"]
[Result "0-1"]
[WhiteElo "2322"]
[BlackElo "2136"]
[TimeControl "180+1"]
[EndTime "10:29:59 PDT"]
[Termination "chenxiaoyuer won by resignation"]

1. d4 {[%clk 0:03:00.9]} 1... Nf6 {[%clk 0:02:59.2]} 2. Nf3 {[%clk 0:03:01.5]}
2... g6 {[%clk 0:02:59.1]} 3. g3 {[%clk 0:03:01.3]} 3... Bg7 {[%clk 0:02:58.7]}
4. Bg2 {[%clk 0:03:01.9]} 4... O-O {[%clk 0:02:58.9]} 5. O-O {[%clk 0:03:02.4]}
5... d6 {[%clk 0:02:59.4]} 6. c4 {[%clk 0:03:02.2]} 6... Nc6 {[%clk 0:02:59.3]}
7. Nc3 {[%clk 0:03:02.8]} 7... Bg4 {[%clk 0:02:58.1]} 8. d5 {[%clk 0:03:01.4]}
8... Na5 {[%clk 0:02:57.5]} 9. Nd2 {[%clk 0:03:01.9]} 9... c5 {[%clk 0:02:56]}
10. Qc2 {[%clk 0:03:01.4]} 10... a6 {[%clk 0:02:54.9]} 11. a3 {[%clk 0:03:00.6]}
11... b5 {[%clk 0:02:54.4]} 12. cxb5 {[%clk 0:02:59.2]} 12... axb5 {[%clk
0:02:54]} 13. h3 {[%clk 0:02:57.3]} 13... Bd7 {[%clk 0:02:52.3]} 14. e4 {[%clk
0:02:37.2]} 14... b4 {[%clk 0:02:44.6]} 15. Nd1 {[%clk 0:02:16.5]} 15... Bb5
{[%clk 0:02:24.4]} 16. Re1 {[%clk 0:02:16.6]} 16... b3 {[%clk 0:02:11.9]} 17.
Qb1 {[%clk 0:02:15.7]} 17... Nd7 {[%clk 0:02:06.5]} 18. Nc3 {[%clk 0:02:16.1]}
18... Bxc3 {[%clk 0:01:58.8]} 19. bxc3 {[%clk 0:02:17]} 19... c4 {[%clk
0:01:56]} 20. Nf3 {[%clk 0:02:10.1]} 20... Nc5 {[%clk 0:01:31]} 21. Bh6 {[%clk
0:02:07.7]} 21... Re8 {[%clk 0:01:26.6]} 22. Nd4 {[%clk 0:02:01.9]} 22... Ba4
{[%clk 0:01:23.7]} 23. e5 {[%clk 0:01:38.2]} 23... dxe5 {[%clk 0:01:13.1]} 24.
Rxe5 {[%clk 0:01:36.2]} 24... Nd3 {[%clk 0:01:10.5]} 25. Re3 {[%clk 0:01:32.7]}
25... Qd6 {[%clk 0:01:08]} 26. Rxd3 {[%clk 0:01:12.6]} 26... cxd3 {[%clk
0:01:07]} 27. Qxd3 {[%clk 0:01:13.5]} 27... Rac8 {[%clk 0:00:42.3]} 28. h4
{[%clk 0:00:54.3]} 28... Qc5 {[%clk 0:00:39.7]} 29. Bd2 {[%clk 0:00:34]} 29...
Nc4 {[%clk 0:00:37.1]} 30. Be1 {[%clk 0:00:34.5]} 30... Rb8 {[%clk 0:00:26.1]}
31. h5 {[%clk 0:00:30.9]} 31... b2 {[%clk 0:00:20.5]} 32. Rb1 {[%clk 0:00:30.6]}
32... Nxa3 {[%clk 0:00:20.1]} 33. hxg6 {[%clk 0:00:29.3]} 33... hxg6 {[%clk
0:00:19.4]} 34. Ne6 {[%clk 0:00:19]} 34... Qd6 {[%clk 0:00:13.4]} 35. Rxb2
{[%clk 0:00:11.5]} 35... Rxb2 {[%clk 0:00:12.9]} 36. Nf4 {[%clk 0:00:05.5]}
36... Qe5 {[%clk 0:00:12.5]} 37. Bd2 {[%clk 0:00:05.1]} 37... Rb1+ {[%clk
0:00:11.8]} 38. Kh2 {[%clk 0:00:05]} 38... Qh8+ {[%clk 0:00:11.5]} 39. Nh3
{[%clk 0:00:04.6]} 39... Bd7 {[%clk 0:00:11.3]} 40. Be3 {[%clk 0:00:04]} 40...
Bxh3 {[%clk 0:00:11.3]} 41. Bxh3 {[%clk 0:00:04.9]} 41... Rh1+ {[%clk 0:00:11]}
42. Kxh1 {[%clk 0:00:05.2]} 42... Qxh3+ {[%clk 0:00:11.2]} 43. Kg1 {[%clk
0:00:05.7]} 43... Rb8 {[%clk 0:00:11.3]} 44. Bc1 {[%clk 0:00:04.4]} 44... Rb1
{[%clk 0:00:11.3]} 45. Qd1 {[%clk 0:00:03.4]} 45... Qh6 {[%clk 0:00:10.9]} 46.
Bxh6 {[%clk 0:00:03]} 46... Rxd1+ {[%clk 0:00:10.9]} 47. Kg2 {[%clk 0:00:03.5]}
47... Rxd5 {[%clk 0:00:11.8]} 48. Be3 {[%clk 0:00:02.6]} 48... Nc4 {[%clk
0:00:12.1]} 49. Bd4 {[%clk 0:00:02.7]} 49... e5 {[%clk 0:00:10.6]} 50. Ba7
{[%clk 0:00:02.5]} 50... f5 {[%clk 0:00:10.8]} 51. Kf3 {[%clk 0:00:02.1]} 51...
Kf7 {[%clk 0:00:11.2]} 52. Ke2 {[%clk 0:00:03]} 52... Ke6 {[%clk 0:00:10.9]} 53.
f3 {[%clk 0:00:03.9]} 53... Rd7 {[%clk 0:00:11.2]} 54. g4 {[%clk 0:00:04.8]}
54... e4 {[%clk 0:00:11.4]} 55. fxe4 {[%clk 0:00:04.8]} 55... fxe4 {[%clk
0:00:11.4]} 56. g5 {[%clk 0:00:03.6]} 56... Rxa7 {[%clk 0:00:11.3]} 0-1

[Event "*** Titled Tuesday Blitz"]
[Site "Chess.com"]
[Date "2020.04.28"]
[Round "3"]
[White "Caterpiller35"]
[Black "HouseOfDurin"]
[Result "1-0"]
[WhiteElo "2305"]
[BlackElo "2063"]
[TimeControl "180+1"]
[EndTime "10:30:00 PDT"]
[Termination "Caterpiller35 won on time"]

1. d4 {[%clk 0:02:59.9]} 1... Nf6 {[%clk 0:02:59.5]} 2. Bg5 {[%clk 0:02:59.7]}
2... Ne4 {[%clk 0:02:58.7]} 3. Bf4 {[%clk 0:02:59.8]} 3... c5 {[%clk 0:02:58.7]}
4. f3 {[%clk 0:02:59.4]} 4... Nf6 {[%clk 0:02:57.3]} 5. dxc5 {[%clk 0:02:59.3]}
5... Qa5+ {[%clk 0:02:56.2]} 6. Qd2 {[%clk 0:02:59.7]} 6... Qxc5 {[%clk
0:02:52.6]} 7. Nc3 {[%clk 0:03:00]} 7... e6 {[%clk 0:02:30.2]} 8. e4 {[%clk
0:02:59.7]} 8... a6 {[%clk 0:02:17.4]} 9. Na4 {[%clk 0:02:51.5]} 9... Qb4 {[%clk
0:02:09.3]} 10. Qxb4 {[%clk 0:02:46.2]} 10... Bxb4+ {[%clk 0:02:10.2]} 11. c3
{[%clk 0:02:45.8]} 11... Ba5 {[%clk 0:02:03.1]} 12. O-O-O {[%clk 0:02:41.7]}
12... d5 {[%clk 0:01:55.2]} 13. Be3 {[%clk 0:01:50.5]} 13... dxe4 {[%clk
0:01:44.1]} 14. Bb6 {[%clk 0:01:43.6]} 14... Nc6 {[%clk 0:01:42.2]} 15. Bxa5
{[%clk 0:01:18.8]} 15... Nxa5 {[%clk 0:01:43.1]} 16. Nb6 {[%clk 0:01:19.7]}
16... Rb8 {[%clk 0:01:42]} 17. fxe4 {[%clk 0:01:13.9]} 17... Nxe4 {[%clk
0:01:40.4]} 18. Nf3 {[%clk 0:01:13.2]} 18... Nf2 {[%clk 0:01:39.7]} 19. Bd3
{[%clk 0:01:09]} 19... Nxh1 {[%clk 0:01:37.3]} 20. Rxh1 {[%clk 0:01:08.7]} 20...
Bd7 {[%clk 0:01:29.4]} 21. Ne5 {[%clk 0:01:06.7]} 21... Bb5 {[%clk 0:01:19.7]}
22. c4 {[%clk 0:01:01.3]} 22... f6 {[%clk 0:01:12.7]} 23. cxb5 {[%clk
0:00:55.9]} 23... fxe5 {[%clk 0:01:12.1]} 24. Re1 {[%clk 0:00:56]} 24... Rd8
{[%clk 0:01:01.1]} 25. Kc2 {[%clk 0:00:54.9]} 25... axb5 {[%clk 0:00:47.5]} 26.
Bxb5+ {[%clk 0:00:52.1]} 26... Nc6 {[%clk 0:00:47.2]} 27. Rxe5 {[%clk
0:00:51.6]} 27... Kf7 {[%clk 0:00:42]} 28. Bxc6 {[%clk 0:00:42.2]} 28... bxc6
{[%clk 0:00:41.7]} 29. Rc5 {[%clk 0:00:42.4]} 29... Rd6 {[%clk 0:00:25.1]} 30.
Nc4 {[%clk 0:00:38]} 30... Rdd8 {[%clk 0:00:20.5]} 31. b4 {[%clk 0:00:32.9]}
31... Ke7 {[%clk 0:00:15.3]} 32. a4 {[%clk 0:00:22.1]} 32... Rc8 {[%clk
0:00:13.1]} 33. Ne5 {[%clk 0:00:17.4]} 33... Rc7 {[%clk 0:00:09.3]} 34. Kc3
{[%clk 0:00:10.6]} 34... Rhc8 {[%clk 0:00:09.1]} 35. a5 {[%clk 0:00:09.7]} 35...
g6 {[%clk 0:00:07.6]} 36. Kb3 {[%clk 0:00:09.6]} 36... Kd6 {[%clk 0:00:07.6]}
37. Nc4+ {[%clk 0:00:09.5]} 37... Ke7 {[%clk 0:00:06.9]} 38. a6 {[%clk
0:00:08.9]} 38... Rb8 {[%clk 0:00:06.5]} 39. Ka4 {[%clk 0:00:08.5]} 39... Ra8
{[%clk 0:00:04.8]} 40. Ka5 {[%clk 0:00:08.3]} 40... Rca7 {[%clk 0:00:04.5]} 41.
Rxc6 {[%clk 0:00:08.1]} 41... Kd7 {[%clk 0:00:04.7]} 42. b5 {[%clk 0:00:08.3]}
42... Rc7 {[%clk 0:00:02.7]} 43. Nb6+ {[%clk 0:00:08.2]} 1-0